[Event "7th Leer Open-A 2024"]
[Site "Leer"]
[Date "2024.10.31"]
[Round "1.20"]
[White "Meyer, Thorsten"]
[Black "Ritscher, Jan-Paul"]
[Result "0-1"]
[ECO "B03"]
[WhiteElo "2295"]
[BlackElo "2208"]
[Annotator "RC"]
[PlyCount "62"]
[EventDate "2024.10.14"]
[EventType "swiss"]
[EventCountry "GER"]
[SourceTitle "playchess.com"]
[Source "ChessBase"]
[SourceQuality "1"]
[TimeControl "40/5400+30:900+30"]

1. e4 {[%emt 0:00:06]} Nf6 {[%emt 0:00:06]} 2. e5 {[%emt 0:00:17]} Nd5 {[%emt 0:00:05]} 3. d4 {[%emt 0:00:09]} d6 {[%emt 0:00:04]} 4. exd6 {[%emt 0:00:15]} exd6 {[%emt 0:00:05]} 5. Nf3 {[%emt 0:03:37]} Be7 {[%emt 0:04:18]} 6. c3 {[%emt 0:00:45]} O-O {[%emt 0:02:37]} 7. Bd3 {[%emt 0:00:54]} Bg4 {[%emt 0:02:08]} 8. O-O {[%emt 0:00:26]} c5 {[%emt 0:01:04]} 9. Be2 {[%emt 0:05:37]} Nc6 {[%emt 0:03:41]} 10. Na3 {[%emt 0:05:48]} Bf6 {[%emt 0:05:26]} 11. Nc2 {[%emt 0:02:39]} Bh5 {[%emt 0:02:15]} 12. Ne3 {[%emt 0:07:51]} Nf4 {[%emt 0:02:51]} 13. dxc5 {[%emt 0:13:45]} dxc5 {[%emt 0:02:35]} 14. g4 {[%emt 0:08:46]} Nxe2+ {[%emt 0:03:36]} 15. Qxe2 {[%emt 0:00:02]} Bg6 {[%emt 0:00:06]} 16. Rd1 {[%emt 0:02:13]} Qe7 {[%emt 0:01:00]} 17. Qf1 {[%emt 0:01:31]} Rad8 {[%emt 0:06:10]} 18. Re1 {[%emt 0:03:48]} Qc7 {[%emt 0:17:22]} 19. Qh3 {[%emt 0:04:27]} Rfe8 {[%emt 0:05:01]} 20. g5 {[%emt 0:07:00]} Be5 {[%emt 0:01:18]} 21. Nc4 {[%emt 0:03:13]} Bf4 {[%emt 0:11:26]} 22. Be3 {[%emt 0:04:15]} Bxe3 {[%emt 0:02:24]} 23. Rxe3 {[%emt 0:05:24]} Qf4 {[%emt 0:04:37]} 24. Rae1 {[%emt 0:07:17]} Rxe3 {[%emt 0:00:07]} 25. Nxe3 {[%emt 0:00:02]} Be4 {[%emt 0:01:02]} 26. Nh4 {[%emt 0:01:31]} Qxg5+ {[%emt 0:00:08]} 27. Qg3 {[%emt 0:00:10]} h6 {[%emt 0:01:40]} 28. Nhg2 {[%emt 0:04:56]} Ne5 {[%emt 0:02:29]} 29. Rd1 {[%emt 0:02:21]} Rxd1+ {[%emt 0:00:58]} 30. Nxd1 {[%emt 0:00:01]} Nf3+ {[%emt 0:00:12]} 31. Kf1 {[%emt 0:00:32]} Bd3# {[%emt 0:02:29]} 0-1

[Event "7th Leer Open-A 2024"]
[Site "Leer"]
[Date "2024.10.31"]
[Round "1.21"]
[White "De Boer, Bas"]
[Black "Piepenhagen, Eric"]
[Result "1/2-1/2"]
[ECO "E18"]
[WhiteElo "2174"]
[BlackElo "1901"]
[Annotator "RC"]
[PlyCount "53"]
[EventDate "2024.10.14"]
[EventType "swiss"]
[EventCountry "GER"]
[SourceTitle "playchess.com"]
[Source "ChessBase"]
[SourceQuality "1"]
[TimeControl "40/5400+30:900+30"]

1. d4 {[%emt 0:00:02]} d5 {[%emt 0:00:17]} 2. c4 {[%emt 0:00:06]} e6 {[%emt 0:00:08]} 3. Nf3 {[%emt 0:00:07]} Be7 {[%emt 0:00:31]} 4. g3 {[%emt 0:00:28]} Nf6 {[%emt 0:01:07]} 5. Bg2 {[%emt 0:00:06]} b6 {[%emt 0:00:20]} 6. O-O {[%emt 0:01:55]} O-O {[%emt 0:00:19]} 7. Nc3 {[%emt 0:02:09]} Bb7 {[%emt 0:02:11]} 8. cxd5 {[%emt 0:00:24]} Nxd5 {[%emt 0:02:31]} 9. Qc2 {[%emt 0:03:09]} Nd7 {[%emt 0:05:09]} 10. e4 {[%emt 0:01:42]} Nxc3 {[%emt 0:03:44]} 11. bxc3 {[%emt 0:00:10]} c5 {[%emt 0:01:41]} 12. Rd1 {[%emt 0:05:53]} cxd4 {[%emt 0:02:27]} 13. cxd4 {[%emt 0:02:34]} Rc8 {[%emt 0:01:19]} 14. Qe2 {[%emt 0:00:32]} Nf6 {[%emt 0:07:01]} 15. Ne1 {[%emt 0:00:30]} Qc7 {[%emt 0:04:09]} 16. Bb2 {[%emt 0:14:43]} Qc4 {[%emt 0:15:39]} 17. Nd3 {[%emt 0:03:34]} Ba6 {[%emt 0:01:22]} 18. Qe3 {[%emt 0:06:24]} Qa4 {[%emt 0:03:18]} 19. Ne1 {[%emt 0:08:17]} Bb4 {[%emt 0:08:00]} 20. Qb3 {[%emt 0:09:37]} Qa5 {[%emt 0:11:36]} 21. Nc2 {[%emt 0:04:02]} Bd2 {[%emt 0:02:35]} 22. Ba3 {[%emt 0:05:38]} Bc4 {[%emt 0:05:47]} 23. Qf3 {[%emt 0:07:17]} Rfe8 {[%emt 0:00:31]} 24. Bd6 {[%emt 0:02:51]} Bc3 {[%emt 0:05:09]} 25. Rac1 {[%emt 0:01:48]} Bd2 {[%emt 0:00:40]} 26. Ra1 {[%emt 0:04:50]} Bc3 {[%emt 0:00:05]} 27. Rac1 {[%emt 0:00:55]} 1/2-1/2

[Event "7th Leer Open-A 2024"]
[Site "Leer"]
[Date "2024.10.31"]
[Round "1.22"]
[White "Cordes, Jule"]
[Black "Spiric, Igor"]
[Result "0-1"]
[ECO "A67"]
[WhiteElo "1945"]
[BlackElo "2171"]
[Annotator "RC"]
[PlyCount "56"]
[EventDate "2024.10.14"]
[EventType "swiss"]
[EventCountry "GER"]
[SourceTitle "playchess.com"]
[Source "ChessBase"]
[SourceQuality "1"]
[TimeControl "40/5400+30:900+30"]

1. d4 {[%emt 0:00:02]} Nf6 {[%emt 0:00:42]} 2. c4 {[%emt 0:00:02]} c5 {[%emt 0:00:56]} 3. d5 {[%emt 0:00:13]} e6 {[%emt 0:00:03]} 4. Nc3 {[%emt 0:00:35]} exd5 {[%emt 0:00:04]} 5. cxd5 {[%emt 0:00:10]} d6 {[%emt 0:00:03]} 6. e4 {[%emt 0:00:31]} g6 {[%emt 0:00:06]} 7. f4 {[%emt 0:00:22]} Bg7 {[%emt 0:00:08]} 8. Bb5+ {[%emt 0:00:35]} Nfd7 {[%emt 0:00:25]} 9. a4 {[%emt 0:00:43]} Na6 {[%emt 0:00:32]} 10. Nf3 {[%emt 0:01:25]} O-O {[%emt 0:00:05]} 11. O-O {[%emt 0:00:34]} Nb4 {[%emt 0:01:52]} 12. Re1 {[%emt 0:02:23]} a6 {[%emt 0:00:43]} 13. Bc4 {[%emt 0:03:08]} Nb6 {[%emt 0:00:09]} 14. Bf1 {[%emt 0:01:23]} Bg4 {[%emt 0:00:09]} 15. Be3 {[%emt 0:06:00]} Bxf3 {[%emt 0:11:13]} 16. gxf3 {[%emt 0:00:38]} Nd7 {[%emt 0:13:32]} 17. Qd2 {[%emt 0:11:00]} Qh4 {[%emt 0:03:36]} 18. Bf2 {[%emt 0:03:18]} Qh5 {[%emt 0:10:16]} 19. Be2 {[%emt 0:10:53]} Bh6 {[%emt 0:04:21]} 20. Bg3 {[%emt 0:04:53]} c4 {[%emt 0:07:37]} 21. Bxc4 {[%emt 0:07:12]} Ne5 {[%emt 0:01:30]} 22. Be2 {[%emt 0:04:16]} Nxf3+ {[%emt 0:02:03]} 23. Bxf3 {[%emt 0:00:09]} Qxf3 {[%emt 0:00:04]} 24. Rad1 {[%emt 0:11:35]} f5 {[%emt 0:06:58]} 25. Re3 {[%emt 0:14:36]} Qg4 {[%emt 0:03:23]} 26. Ne2 {[%emt 0:05:04]} a5 {[%emt 0:03:23]} 27. Kh1 {[%emt 0:03:36]} fxe4 {[%emt 0:03:41]} 28. Rxe4 {[%emt 0:00:47]} Qf3+ {[%emt 0:00:09]} 0-1

[Event "7th Leer Open-A 2024"]
[Site "Leer"]
[Date "2024.10.31"]
[Round "1.24"]
[White "Lehmann, Edwin"]
[Black "Boehme, Arne"]
[Result "0-1"]
[ECO "A03"]
[WhiteElo "1942"]
[BlackElo "2137"]
[Annotator "RC"]
[PlyCount "92"]
[EventDate "2024.10.14"]
[EventType "swiss"]
[EventCountry "GER"]
[SourceTitle "playchess.com"]
[Source "ChessBase"]
[SourceQuality "1"]
[TimeControl "40/5400+30:900+30"]

1. f4 {[%emt 0:00:07]} d5 {[%emt 0:00:08]} 2. Nf3 {[%emt 0:00:16]} g6 {[%emt 0:00:27]} 3. d4 {[%emt 0:01:28]} Bg7 {[%emt 0:00:38]} 4. e3 {[%emt 0:01:24]} Nh6 {[%emt 0:01:31]} 5. Bd3 {[%emt 0:02:35]} c5 {[%emt 0:00:52]} 6. c3 {[%emt 0:01:36]} Qc7 {[%emt 0:00:07]} 7. Qe2 {[%emt 0:03:00]} O-O {[%emt 0:02:39]} 8. O-O {[%emt 0:00:51]} Bf5 {[%emt 0:03:19]} 9. Nbd2 {[%emt 0:04:00]} cxd4 {[%emt 0:04:25]} 10. exd4 {[%emt 0:12:15]} Bxd3 {[%emt 0:09:51]} 11. Qxd3 {[%emt 0:00:19]} Nd7 {[%emt 0:01:23]} 12. Ne5 {[%emt 0:03:44]} Nb6 {[%emt 0:03:34]} 13. Qh3 {[%emt 0:02:51]} Qd6 {[%emt 0:14:47]} 14. Ndf3 {[%emt 0:03:21]} f6 {[%emt 0:06:06]} 15. Nd3 {[%emt 0:03:14]} Qd7 {[%emt 0:02:28]} 16. Qxd7 {[%emt 0:07:19]} Nxd7 {[%emt 0:00:02]} 17. Bd2 {[%emt 0:00:54]} Nf5 {[%emt 0:03:22]} 18. Rae1 {[%emt 0:01:56]} Kf7 {[%emt 0:00:51]} 19. Re2 {[%emt 0:03:35]} h5 {[%emt 0:05:34]} 20. Rfe1 {[%emt 0:01:30]} Rfe8 {[%emt 0:02:03]} 21. Be3 {[%emt 0:12:01]} e6 {[%emt 0:12:53]} 22. Bf2 {[%emt 0:03:08]} Bf8 {[%emt 0:00:01]} 23. Nc5 {[%emt 0:04:32]} Bxc5 {[%emt 0:04:39]} 24. dxc5 {[%emt 0:00:18]} Rac8 {[%emt 0:00:07]} 25. b4 {[%emt 0:07:27]} b6 {[%emt 0:01:05]} 26. cxb6 {[%emt 0:03:52]} axb6 {[%emt 0:02:10]} 27. Nd4 {[%emt 0:02:31]} Nxd4 {[%emt 0:03:50]} 28. Bxd4 {[%emt 0:00:41]} b5 {[%emt 0:00:23]} 29. Kf2 {[%emt 0:02:18]} Rc6 {[%emt 0:00:26]} 30. h3 {[%emt 0:03:59]} Ke7 {[%emt 0:00:22]} 31. g4 {[%emt 0:00:37]} hxg4 {[%emt 0:00:01]} 32. hxg4 {[%emt 0:00:08]} Kd6 {[%emt 0:00:02]} 33. Ra1 {[%emt 0:04:36]} e5 {[%emt 0:08:45]} 34. a4 {[%emt 0:00:48]} bxa4 {[%emt 0:00:51]} 35. Rxa4 {[%emt 0:00:17]} Rb8 {[%emt 0:02:05]} 36. fxe5+ {[%emt 0:01:01]} fxe5 {[%emt 0:01:11]} 37. Bc5+ {[%emt 0:00:52]} Nxc5 {[%emt 0:00:53]} 38. bxc5+ {[%emt 0:00:06]} Ke6 {[%emt 0:00:39]} 39. Ra5 {[%emt 0:00:48]} Rbc8 {[%emt 0:00:34]} 40. Re3 {[%emt 0:00:54]} Rxc5 {[%emt 0:00:40]} 41. Ra3 {[%emt 0:16:05]} e4 {[%emt 0:18:57]} 42. Ke2 {[%emt 0:02:25]} Ke5 {[%emt 0:00:31]} 43. Rg3 {[%emt 0:00:00]} Kf4 {[%emt 0:00:00]} 44. Kf2 {[%emt 0:00:00]} d4 {[%emt 0:00:00]} 45. Rg1 {[%emt 0:00:00]} Rxc3 {[%emt 0:00:00]} 46. Rxc3 {[%emt 0:00:00]} Rxc3 {[%emt 0:00:00]} 0-1

[Event "7th Leer Open-A 2024"]
[Site "Leer"]
[Date "2024.10.31"]
[Round "1.25"]
[White "Kaeding, Rainer"]
[Black "Bauer, Timon"]
[Result "1-0"]
[ECO "A53"]
[WhiteElo "2155"]
[BlackElo "1938"]
[Annotator "RC"]
[PlyCount "91"]
[EventDate "2024.10.14"]
[EventType "swiss"]
[EventCountry "GER"]
[SourceTitle "playchess.com"]
[Source "ChessBase"]
[SourceQuality "1"]
[TimeControl "40/5400+30:900+30"]

1. c4 {[%emt 0:00:14]} Nf6 {[%emt 0:00:56]} 2. g3 {[%emt 0:00:16]} e5 {[%emt 0:00:40]} 3. Bg2 {[%emt 0:00:09]} c6 {[%emt 0:00:26]} 4. d4 {[%emt 0:00:34]} d6 {[%emt 0:08:32]} 5. Nc3 {[%emt 0:02:14]} Be7 {[%emt 0:02:30]} 6. e4 {[%emt 0:01:32]} Qb6 {[%emt 0:02:24]} 7. Nge2 {[%emt 0:01:17]} Nbd7 {[%emt 0:02:29]} 8. O-O {[%emt 0:03:42]} h5 {[%emt 0:03:11]} 9. h3 {[%emt 0:00:48]} O-O {[%emt 0:08:20]} 10. b3 {[%emt 0:00:58]} Re8 {[%emt 0:00:44]} 11. Be3 {[%emt 0:05:17]} Qc7 {[%emt 0:05:57]} 12. Qd2 {[%emt 0:02:52]} exd4 {[%emt 0:03:03]} 13. Nxd4 {[%emt 0:01:08]} Bf8 {[%emt 0:01:14]} 14. Rad1 {[%emt 0:02:11]} Nc5 {[%emt 0:07:47]} 15. f3 {[%emt 0:08:05]} d5 {[%emt 0:04:58]} 16. Bf4 {[%emt 0:06:58]} Bd6 {[%emt 0:07:24]} 17. Bxd6 {[%emt 0:01:03]} Qxd6 {[%emt 0:00:19]} 18. Nde2 {[%emt 0:00:14]} Qe7 {[%emt 0:09:52]} 19. cxd5 {[%emt 0:01:24]} cxd5 {[%emt 0:00:47]} 20. Nxd5 {[%emt 0:00:41]} Nxd5 {[%emt 0:01:47]} 21. Qxd5 {[%emt 0:00:19]} g6 {[%emt 0:04:25]} 22. Qd6 {[%emt 0:03:23]} Qxd6 {[%emt 0:02:00]} 23. Rxd6 {[%emt 0:00:08]} Be6 {[%emt 0:01:07]} 24. Rfd1 {[%emt 0:02:18]} a5 {[%emt 0:01:10]} 25. Nf4 {[%emt 0:01:26]} Rac8 {[%emt 0:02:52]} 26. Bf1 {[%emt 0:02:32]} Kg7 {[%emt 0:03:27]} 27. h4 {[%emt 0:02:13]} Rc7 {[%emt 0:01:21]} 28. Kf2 {[%emt 0:03:52]} Rec8 {[%emt 0:03:19]} 29. Ke3 {[%emt 0:03:54]} Kf8 {[%emt 0:01:12]} 30. Nxe6+ {[%emt 0:07:38]} Nxe6 {[%emt 0:00:22]} 31. Bc4 {[%emt 0:00:39]} Ke7 {[%emt 0:01:00]} 32. Bxe6 {[%emt 0:06:42]} fxe6 {[%emt 0:00:19]} 33. Rb6 {[%emt 0:00:50]} Kf7 {[%emt 0:03:43]} 34. Kf4 {[%emt 0:03:08]} Re7 {[%emt 0:01:45]} 35. Rb5 {[%emt 0:01:20]} a4 {[%emt 0:01:34]} 36. bxa4 {[%emt 0:03:10]} Rc4 {[%emt 0:00:26]} 37. Rdb1 {[%emt 0:04:37]} Rxa4 {[%emt 0:04:43]} 38. Rxb7 {[%emt 0:00:28]} Rxa2 {[%emt 0:00:27]} 39. Rxe7+ {[%emt 0:00:12]} Kxe7 {[%emt 0:00:01]} 40. Rb7+ {[%emt 0:00:13]} Kf8 {[%emt 0:00:48]} 41. Rb6 {[%emt 0:23:42]} Kf7 {[%emt 0:01:40]} 42. Rb7+ {[%emt 0:00:00]} Kf8 {[%emt 0:00:18]} 43. Kg5 {[%emt 0:00:00]} Rg2 {[%emt 0:02:22]} 44. Kf6 {[%emt 0:00:00]} Kg8 {[%emt 0:01:10]} 45. Rg7+ {[%emt 0:00:00]} Kh8 {[%emt 0:02:28]} 46. Rxg6 {[%emt 0:00:00]} 1-0

[Event "7th Leer Open-A 2024"]
[Site "Leer"]
[Date "2024.10.31"]
[Round "1.26"]
[White "de Vries, Carsten"]
[Black "Gremmel, Jonas Simon"]
[Result "0-1"]
[ECO "B13"]
[WhiteElo "1932"]
[BlackElo "2100"]
[Annotator "RC"]
[PlyCount "86"]
[EventDate "2024.10.14"]
[EventType "swiss"]
[EventCountry "GER"]
[SourceTitle "playchess.com"]
[Source "ChessBase"]
[SourceQuality "1"]
[TimeControl "40/5400+30:900+30"]

1. e4 {[%emt 0:00:03]} c6 {[%emt 0:00:05]} 2. d4 {[%emt 0:00:29]} d5 {[%emt 0:00:05]} 3. exd5 {[%emt 0:00:26]} cxd5 {[%emt 0:00:05]} 4. Bd3 {[%emt 0:00:06]} Nc6 {[%emt 0:00:11]} 5. c3 {[%emt 0:00:02]} Nf6 {[%emt 0:00:17]} 6. h3 {[%emt 0:00:14]} g6 {[%emt 0:00:23]} 7. Nf3 {[%emt 0:00:44]} Bg7 {[%emt 0:00:05]} 8. O-O {[%emt 0:00:21]} O-O {[%emt 0:00:04]} 9. Re1 {[%emt 0:01:26]} Bf5 {[%emt 0:02:32]} 10. Bf1 {[%emt 0:06:58]} Re8 {[%emt 0:05:22]} 11. Bf4 {[%emt 0:00:58]} a6 {[%emt 0:09:43]} 12. Nbd2 {[%emt 0:00:53]} h6 {[%emt 0:06:35]} 13. Ne5 {[%emt 0:03:36]} Qb6 {[%emt 0:07:35]} 14. g4 {[%emt 0:04:56]} Bc8 {[%emt 0:09:51]} 15. Qc2 {[%emt 0:04:44]} Nd8 {[%emt 0:09:52]} 16. Bd3 {[%emt 0:18:08]} Ne6 {[%emt 0:02:10]} 17. Bg3 {[%emt 0:03:18]} Nf8 {[%emt 0:02:30]} 18. Re2 {[%emt 0:02:51]} h5 {[%emt 0:04:24]} 19. g5 {[%emt 0:06:44]} h4 {[%emt 0:06:12]} 20. gxf6 {[%emt 0:09:10]} exf6 {[%emt 0:00:30]} 21. Nec4 {[%emt 0:09:24]} dxc4 {[%emt 0:00:06]} 22. Nxc4 {[%emt 0:00:42]} Qd8 {[%emt 0:01:15]} 23. Rxe8 {[%emt 0:03:30]} Qxe8 {[%emt 0:00:05]} 24. Nd6 {[%emt 0:06:16]} Qe6 {[%emt 0:02:50]} 25. Bc4 {[%emt 0:01:03]} Qxh3 {[%emt 0:00:29]} 26. Bxf7+ {[%emt 0:02:16]} Kh7 {[%emt 0:00:05]} 27. Bh2 {[%emt 0:01:31]} Qg4+ {[%emt 0:09:41]} 28. Kf1 {[%emt 0:00:47]} Be6 {[%emt 0:02:54]} 29. Bxe6 {[%emt 0:13:24]} Nxe6 {[%emt 0:00:06]} 30. Qe4 {[%emt 0:00:00]} Qh3+ {[%emt 0:00:09]} 31. Qg2 {[%emt 0:00:00]} Qd3+ {[%emt 0:00:05]} 32. Kg1 {[%emt 0:00:00]} Ng5 {[%emt 0:00:57]} 33. Kh1 {[%emt 0:00:00]} Nf3 {[%emt 0:03:39]} 34. Qh3 {[%emt 0:00:00]} Qe2 {[%emt 0:02:44]} 35. Bg3 {[%emt 0:00:00]} Qxb2 {[%emt 0:01:11]} 36. Rf1 {[%emt 0:00:24]} Qxa2 {[%emt 0:03:22]} 37. Bxh4 {[%emt 0:01:12]} Nxh4 {[%emt 0:00:24]} 38. Qxh4+ {[%emt 0:00:02]} Kg8 {[%emt 0:00:08]} 39. Qe4 {[%emt 0:00:49]} Rd8 {[%emt 0:01:44]} 40. Nxb7 {[%emt 0:03:03]} Rd5 {[%emt 0:00:22]} 41. Qxg6 {[%emt 0:06:02]} Qe2 {[%emt 0:01:46]} 42. Rg1 {[%emt 0:06:24]} Rh5+ {[%emt 0:00:06]} 43. Qxh5 {[%emt 0:00:58]} Qxh5+ {[%emt 0:00:05]} 0-1

[Event "7th Leer Open-A 2024"]
[Site "Leer"]
[Date "2024.10.31"]
[Round "1.27"]
[White "Helms, Finn"]
[Black "Aden, Keno"]
[Result "1/2-1/2"]
[ECO "B12"]
[WhiteElo "2149"]
[BlackElo "1885"]
[Annotator "RC"]
[PlyCount "82"]
[EventDate "2024.10.14"]
[EventType "swiss"]
[EventCountry "GER"]
[SourceTitle "playchess.com"]
[Source "ChessBase"]
[SourceQuality "1"]
[TimeControl "40/5400+30:900+30"]

1. e4 {[%emt 0:00:01]} c6 {[%emt 0:00:03]} 2. d4 {[%emt 0:00:04]} d5 {[%emt 0:00:04]} 3. e5 {[%emt 0:02:16]} Bf5 {[%emt 0:00:16]} 4. Nf3 {[%emt 0:00:04]} e6 {[%emt 0:00:12]} 5. Be2 {[%emt 0:00:03]} c5 {[%emt 0:00:33]} 6. Be3 {[%emt 0:00:05]} Nd7 {[%emt 0:02:58]} 7. O-O {[%emt 0:07:07]} Ne7 {[%emt 0:04:32]} 8. dxc5 {[%emt 0:13:53]} Nc6 {[%emt 0:00:45]} 9. Bb5 {[%emt 0:11:29]} Bg4 {[%emt 0:03:37]} 10. c4 {[%emt 0:19:27]} Bxf3 {[%emt 0:22:24]} 11. Qxf3 {[%emt 0:04:56]} Ndxe5 {[%emt 0:03:02]} 12. Qf4 {[%emt 0:01:41]} Ng6 {[%emt 0:07:29]} 13. Qg4 {[%emt 0:03:55]} dxc4 {[%emt 0:09:09]} 14. Qxc4 {[%emt 0:00:54]} Qc7 {[%emt 0:01:06]} 15. Nc3 {[%emt 0:01:47]} Be7 {[%emt 0:03:24]} 16. Ba4 {[%emt 0:02:43]} Rd8 {[%emt 0:10:04]} 17. Bc2 {[%emt 0:03:32]} O-O {[%emt 0:01:08]} 18. h3 {[%emt 0:08:50]} Nce5 {[%emt 0:11:34]} 19. Qb5 {[%emt 0:02:33]} a6 {[%emt 0:04:13]} 20. Qb4 {[%emt 0:01:03]} Nc6 {[%emt 0:02:33]} 21. Qe4 {[%emt 0:01:10]} Nce5 {[%emt 0:01:54]} 22. Qb4 {[%emt 0:00:42]} Nc6 {[%emt 0:00:33]} 23. Qa4 {[%emt 0:03:02]} Nce5 {[%emt 0:04:22]} 24. b4 {[%emt 0:02:54]} Nc4 {[%emt 0:00:25]} 25. Bc1 {[%emt 0:00:52]} Bf6 {[%emt 0:00:46]} 26. Qb3 {[%emt 0:00:57]} Nd2 {[%emt 0:00:39]} 27. Bxd2 {[%emt 0:00:48]} Rxd2 {[%emt 0:00:01]} 28. Rad1 {[%emt 0:01:45]} Bxc3 {[%emt 0:05:38]} 29. Qxc3 {[%emt 0:00:13]} Rxd1 {[%emt 0:00:03]} 30. Rxd1 {[%emt 0:01:46]} Nf4 {[%emt 0:00:07]} 31. Qe3 {[%emt 0:00:47]} Nd5 {[%emt 0:00:30]} 32. Qe4 {[%emt 0:00:15]} g6 {[%emt 0:00:19]} 33. Qd4 {[%emt 0:00:25]} a5 {[%emt 0:01:51]} 34. a3 {[%emt 0:00:58]} axb4 {[%emt 0:00:20]} 35. axb4 {[%emt 0:00:02]} b6 {[%emt 0:00:20]} 36. Be4 {[%emt 0:01:40]} bxc5 {[%emt 0:00:58]} 37. bxc5 {[%emt 0:03:07]} Nf4 {[%emt 0:00:20]} 38. Qd6 {[%emt 0:00:32]} Rc8 {[%emt 0:00:29]} 39. Qxc7 {[%emt 0:01:00]} Rxc7 {[%emt 0:00:05]} 40. c6 {[%emt 0:00:26]} Nd5 {[%emt 0:01:07]} 41. Bxd5 {[%emt 0:06:39]} exd5 {[%emt 0:00:08]} 1/2-1/2

[Event "7th Leer Open-A 2024"]
[Site "Leer"]
[Date "2024.10.31"]
[Round "1.28"]
[White "Direk, Oguzhan"]
[Black "Lippert, Daniel"]
[Result "0-1"]
[ECO "D00"]
[WhiteElo "1860"]
[BlackElo "2112"]
[Annotator "RC"]
[PlyCount "76"]
[EventDate "2024.10.14"]
[EventType "swiss"]
[EventCountry "GER"]
[SourceTitle "playchess.com"]
[Source "ChessBase"]
[SourceQuality "1"]
[TimeControl "40/5400+30:900+30"]

1. d4 {[%emt 0:01:03]} d5 {[%emt 0:00:17]} 2. Nc3 {[%emt 0:00:10]} Nf6 {[%emt 0:00:16]} 3. Bf4 {[%emt 0:00:11]} e6 {[%emt 0:00:09]} 4. Nb5 {[%emt 0:00:06]} Na6 {[%emt 0:00:05]} 5. e3 {[%emt 0:00:05]} Be7 {[%emt 0:00:44]} 6. Nf3 {[%emt 0:03:00]} O-O {[%emt 0:00:40]} 7. Be2 {[%emt 0:00:15]} c6 {[%emt 0:02:08]} 8. Nc3 {[%emt 0:00:06]} c5 {[%emt 0:00:32]} 9. Bxa6 {[%emt 0:05:09]} bxa6 {[%emt 0:01:55]} 10. O-O {[%emt 0:02:03]} Nh5 {[%emt 0:11:32]} 11. Ne2 {[%emt 0:10:10]} f6 {[%emt 0:07:56]} 12. h3 {[%emt 0:05:41]} Nxf4 {[%emt 0:02:21]} 13. Nxf4 {[%emt 0:04:19]} Rb8 {[%emt 0:15:09]} 14. b3 {[%emt 0:08:39]} Qb6 {[%emt 0:08:05]} 15. c4 {[%emt 0:08:12]} dxc4 {[%emt 0:11:10]} 16. bxc4 {[%emt 0:01:10]} cxd4 {[%emt 0:01:13]} 17. exd4 {[%emt 0:00:14]} Qc7 {[%emt 0:01:39]} 18. Qc1 {[%emt 0:04:47]} Bd6 {[%emt 0:04:33]} 19. Nd3 {[%emt 0:01:01]} Bb7 {[%emt 0:00:58]} 20. Nd2 {[%emt 0:03:17]} Qc6 {[%emt 0:09:36]} 21. f3 {[%emt 0:01:36]} Rbc8 {[%emt 0:00:55]} 22. Rb1 {[%emt 0:03:23]} Ba8 {[%emt 0:02:09]} 23. c5 {[%emt 0:04:30]} Bb8 {[%emt 0:02:41]} 24. Qc4 {[%emt 0:01:15]} Qd7 {[%emt 0:00:52]} 25. Rfe1 {[%emt 0:01:12]} Rfd8 {[%emt 0:04:29]} 26. Kh1 {[%emt 0:05:22]} Qxd4 {[%emt 0:04:44]} 27. Qxe6+ {[%emt 0:00:05]} Kh8 {[%emt 0:00:20]} 28. Re3 {[%emt 0:00:58]} Qd7 {[%emt 0:03:22]} 29. Qxd7 {[%emt 0:02:48]} Rxd7 {[%emt 0:00:01]} 30. Rbe1 {[%emt 0:00:07]} Rdd8 {[%emt 0:00:19]} 31. Nb4 {[%emt 0:00:32]} Bf4 {[%emt 0:00:49]} 32. Nc4 {[%emt 0:01:40]} Bxe3 {[%emt 0:00:13]} 33. Nxe3 {[%emt 0:00:07]} a5 {[%emt 0:00:29]} 34. Nbc2 {[%emt 0:02:01]} Rxc5 {[%emt 0:00:08]} 35. Kg1 {[%emt 0:00:21]} Kg8 {[%emt 0:00:26]} 36. Re2 {[%emt 0:00:20]} Bb7 {[%emt 0:00:31]} 37. h4 {[%emt 0:01:28]} Ba6 {[%emt 0:00:41]} 38. Re1 {[%emt 0:00:11]} Rd2 {[%emt 0:00:37]} 0-1

[Event "7th Leer Open-A 2024"]
[Site "Leer"]
[Date "2024.10.31"]
[Round "1.29"]
[White "Wagner, Jan"]
[Black "Theile-Rasche, Ingo"]
[Result "1-0"]
[ECO "A30"]
[WhiteElo "2137"]
[BlackElo "1916"]
[Annotator "RC"]
[PlyCount "63"]
[EventDate "2024.10.14"]
[EventType "swiss"]
[EventCountry "GER"]
[SourceTitle "playchess.com"]
[Source "ChessBase"]
[SourceQuality "1"]
[TimeControl "40/5400+30:900+30"]

1. c4 {[%emt 0:00:14]} c5 {[%emt 0:00:21]} 2. g3 {[%emt 0:00:13]} Nf6 {[%emt 0:01:24]} 3. Bg2 {[%emt 0:00:16]} e6 {[%emt 0:00:45]} 4. Nf3 {[%emt 0:01:37]} Be7 {[%emt 0:00:11]} 5. O-O {[%emt 0:00:49]} O-O {[%emt 0:00:13]} 6. b3 {[%emt 0:01:41]} d6 {[%emt 0:03:41]} 7. Bb2 {[%emt 0:00:53]} Nbd7 {[%emt 0:00:16]} 8. Nc3 {[%emt 0:01:15]} a6 {[%emt 0:00:19]} 9. Qc2 {[%emt 0:03:01]} Rb8 {[%emt 0:02:50]} 10. a4 {[%emt 0:02:55]} b6 {[%emt 0:02:26]} 11. d4 {[%emt 0:08:52]} Bb7 {[%emt 0:03:59]} 12. Rfd1 {[%emt 0:01:57]} cxd4 {[%emt 0:01:45]} 13. Rxd4 {[%emt 0:01:27]} Qc7 {[%emt 0:10:35]} 14. Rc1 {[%emt 0:04:28]} Rfc8 {[%emt 0:08:49]} 15. Qb1 {[%emt 0:02:25]} Nc5 {[%emt 0:04:08]} 16. Ba3 {[%emt 0:05:49]} e5 {[%emt 0:15:27]} 17. Rh4 {[%emt 0:04:45]} Ne6 {[%emt 0:01:34]} 18. Nd5 {[%emt 0:03:46]} Bxd5 {[%emt 0:04:57]} 19. cxd5 {[%emt 0:00:12]} Nc5 {[%emt 0:01:11]} 20. b4 {[%emt 0:01:09]} h6 {[%emt 0:07:21]} 21. bxc5 {[%emt 0:03:08]} bxc5 {[%emt 0:14:26]} 22. Qa2 {[%emt 0:01:26]} Nd7 {[%emt 0:07:03]} 23. Rhc4 {[%emt 0:06:14]} Nb6 {[%emt 0:00:19]} 24. R4c2 {[%emt 0:06:39]} Nxa4 {[%emt 0:00:46]} 25. Nd2 {[%emt 0:00:30]} Nb6 {[%emt 0:03:02]} 26. Bb4 {[%emt 0:03:48]} Qa7 {[%emt 0:02:00]} 27. Ba5 {[%emt 0:01:02]} Nd7 {[%emt 0:01:39]} 28. Ra1 {[%emt 0:04:57]} f5 {[%emt 0:00:37]} 29. Bc3 {[%emt 0:01:39]} Ra8 {[%emt 0:00:29]} 30. Nc4 {[%emt 0:00:39]} Qc7 {[%emt 0:02:08]} 31. Nxe5 {[%emt 0:06:11]} Nxe5 {[%emt 0:00:45]} 32. Bxe5 {[%emt 0:00:09]} 1-0